[Event "Titled Tuesday Blitz August 10 2021"]
[White "Nagy, Gabor"]
[Black "Aradhya, Garg"]
[WhiteFideId "737119"]
[BlackFideId "25006746"]
[WhiteElo "2562"]
[BlackElo "2146"]
[Result "1-0"]
[Round "10"]
[TimeControl "180+1"]
[Date "2021.08.10"]
[WhiteClock "0:01:19"]
[BlackClock "0:00:08"]

1. c4 {[%clk 0:03:00]}  e5 {[%clk 0:02:59]} 2. g3 {[%clk 0:02:59]}  Nf6 {[%clk 0:02:57]} 3. Bg2 {[%clk 0:03:00]}  Nc6 {[%clk 0:02:57]} 4. Nc3 {[%clk 0:03:00]}  g6 {[%clk 0:02:56]} 5. Nf3 {[%clk 0:02:58]}  Bg7 {[%clk 0:02:56]} 6. O-O {[%clk 0:02:59]}  O-O {[%clk 0:02:56]} 7. d3 {[%clk 0:02:58]}  d6 {[%clk 0:02:56]} 8. Rb1 {[%clk 0:02:57]}  a5 {[%clk 0:02:56]} 9. a3 {[%clk 0:02:57]}  h6 {[%clk 0:02:55]} 10. b4 {[%clk 0:02:57]}  axb4 {[%clk 0:02:55]} 11. axb4 {[%clk 0:02:58]}  Be6 {[%clk 0:02:56]} 12. b5 {[%clk 0:02:58]}  Ne7 {[%clk 0:02:55]} 13. Bb2 {[%clk 0:02:57]}  Nd7 {[%clk 0:02:51]} 14. Nd2 {[%clk 0:02:57]}  c6 {[%clk 0:02:48]} 15. Nde4 {[%clk 0:02:53]}  d5 {[%clk 0:02:44]} 16. bxc6 {[%clk 0:02:41]}  bxc6 {[%clk 0:02:40]} 17. cxd5 {[%clk 0:02:41]}  cxd5 {[%clk 0:02:40]} 18. Nd6 {[%clk 0:02:41]}  Ra6 {[%clk 0:02:16]} 19. Ndb5 {[%clk 0:02:25]}  d4 {[%clk 0:01:26]} 20. Ne4 {[%clk 0:02:23]}  Bd5 {[%clk 0:01:25]} 21. Ba3 {[%clk 0:02:18]}  f5 {[%clk 0:01:15]} 22. Bxe7 {[%clk 0:02:14]}  Qxe7 {[%clk 0:01:15]} 23. Nc7 {[%clk 0:02:14]}  Ra5 {[%clk 0:01:11]} 24. Nxd5 {[%clk 0:02:11]}  Rxd5 {[%clk 0:01:11]} 25. Qb3 {[%clk 0:02:07]}  fxe4 {[%clk 0:00:53]} 26. Qxd5+ {[%clk 0:02:06]}  Kh7 {[%clk 0:00:54]} 27. Qxe4 {[%clk 0:02:05]}  Nf6 {[%clk 0:00:54]} 28. Qb7 {[%clk 0:02:04]}  Qe6 {[%clk 0:00:53]} 29. Rb6 {[%clk 0:02:03]}  Qa2 {[%clk 0:00:51]} 30. Bf3 {[%clk 0:02:00]}  h5 {[%clk 0:00:44]} 31. Qa6 {[%clk 0:01:58]}  Qd2 {[%clk 0:00:33]} 32. Re6 {[%clk 0:01:50]}  h4 {[%clk 0:00:28]} 33. Rxe5 {[%clk 0:01:49]}  hxg3 {[%clk 0:00:28]} 34. hxg3 {[%clk 0:01:50]}  Ng4 {[%clk 0:00:25]} 35. Re4 {[%clk 0:01:40]}  Ne5 {[%clk 0:00:21]} 36. Rh4+ {[%clk 0:01:38]}  Bh6 {[%clk 0:00:20]} 37. Kg2 {[%clk 0:01:30]}  Kg7 {[%clk 0:00:19]} 38. Qe6 {[%clk 0:01:26]}  Qg5 {[%clk 0:00:16]} 39. Rfh1 {[%clk 0:01:24]}  Nf7 {[%clk 0:00:15]} 40. Rg4 {[%clk 0:01:22]}  Qf6 {[%clk 0:00:12]} 41. Qxf6+ {[%clk 0:01:22]}  Kxf6 {[%clk 0:00:13]} 42. Rxd4 {[%clk 0:01:23]}  Bg5 {[%clk 0:00:12]} 43. Rd7 {[%clk 0:01:22]}  Ne5 {[%clk 0:00:11]} 44. Rd6+ {[%clk 0:01:22]}  Ke7 {[%clk 0:00:11]} 45. Ra6 {[%clk 0:01:21]}  Nxf3 {[%clk 0:00:11]} 46. exf3 {[%clk 0:01:22]}  Bf6 {[%clk 0:00:11]} 47. Rh7+ {[%clk 0:01:21]}  Ke8 {[%clk 0:00:08]} 48. Ra8+ {[%clk 0:01:21]}  Bd8 {[%clk 0:00:08]} 49. f4 {[%clk 0:01:20]}  Rf6 {[%clk 0:00:08]} 50. Rh8+ {[%clk 0:01:19]} 1-0


[Site "https://www.chess.com"]

[Event "Titled Tuesday Blitz August 10 2021"]
[White "Quispe Arteaga, Gabriel"]
[Black "Giroyan, Gary"]
[WhiteFideId "32059809"]
[BlackFideId "680281"]
[WhiteElo "2172"]
[BlackElo "2420"]
[Result "1/2-1/2"]
[Round "10"]
[TimeControl "180+1"]
[Date "2021.08.10"]
[WhiteClock "0:00:08"]
[BlackClock "0:00:07"]

1. c4 {[%clk 0:02:54]}  Nf6 {[%clk 0:02:55]} 2. Nc3 {[%clk 0:02:52]}  g6 {[%clk 0:02:55]} 3. g3 {[%clk 0:02:44]}  Bg7 {[%clk 0:02:55]} 4. Bg2 {[%clk 0:02:44]}  O-O {[%clk 0:02:55]} 5. Nf3 {[%clk 0:02:43]}  d6 {[%clk 0:02:55]} 6. d4 {[%clk 0:02:43]}  Nc6 {[%clk 0:02:54]} 7. O-O {[%clk 0:02:43]}  Bg4 {[%clk 0:02:50]} 8. h3 {[%clk 0:02:26]}  Bxf3 {[%clk 0:02:49]} 9. Bxf3 {[%clk 0:02:27]}  Nd7 {[%clk 0:02:48]} 10. Be3 {[%clk 0:01:56]}  e5 {[%clk 0:02:46]} 11. Bxc6 {[%clk 0:01:56]}  bxc6 {[%clk 0:02:46]} 12. Qd2 {[%clk 0:01:56]}  Rb8 {[%clk 0:02:38]} 13. b3 {[%clk 0:01:52]}  Qe7 {[%clk 0:02:34]} 14. Rad1 {[%clk 0:01:51]}  e4 {[%clk 0:02:18]} 15. f3 {[%clk 0:01:06]}  exf3 {[%clk 0:02:08]} 16. exf3 {[%clk 0:01:07]}  Rfe8 {[%clk 0:01:24]} 17. Rfe1 {[%clk 0:01:02]}  Qf6 {[%clk 0:01:17]} 18. Kg2 {[%clk 0:01:01]}  Nf8 {[%clk 0:01:12]} 19. Bf2 {[%clk 0:00:30]}  Ne6 {[%clk 0:01:10]} 20. Ne4 {[%clk 0:00:27]}  Qf5 {[%clk 0:01:05]} 21. d5 {[%clk 0:00:28]}  cxd5 {[%clk 0:01:00]} 22. cxd5 {[%clk 0:00:29]}  Nf8 {[%clk 0:00:57]} 23. Bd4 {[%clk 0:00:21]}  Qxd5 {[%clk 0:00:49]} 24. Qf2 {[%clk 0:00:20]}  Qf5 {[%clk 0:00:41]} 25. Bxg7 {[%clk 0:00:18]}  Kxg7 {[%clk 0:00:41]} 26. Qd4+ {[%clk 0:00:17]}  Qe5 {[%clk 0:00:40]} 27. Qxe5+ {[%clk 0:00:07]}  Rxe5 {[%clk 0:00:39]} 28. Nf2 {[%clk 0:00:07]}  Rbe8 {[%clk 0:00:37]} 29. Rxe5 {[%clk 0:00:08]}  Rxe5 {[%clk 0:00:38]} 30. Rc1 {[%clk 0:00:08]}  Ne6 {[%clk 0:00:38]} 31. Kf1 {[%clk 0:00:08]}  Ra5 {[%clk 0:00:37]} 32. Rc2 {[%clk 0:00:08]}  Nd4 {[%clk 0:00:35]} 33. Rxc7 {[%clk 0:00:08]}  Rxa2 {[%clk 0:00:36]} 34. Ne4 {[%clk 0:00:07]}  Nf5 {[%clk 0:00:20]} 35. g4 {[%clk 0:00:06]}  Ne3+ {[%clk 0:00:16]} 36. Ke1 {[%clk 0:00:06]}  Ng2+ {[%clk 0:00:16]} 37. Kf1 {[%clk 0:00:07]}  Ne3+ {[%clk 0:00:16]} 38. Ke1 {[%clk 0:00:07]}  d5 {[%clk 0:00:14]} 39. Nd6 {[%clk 0:00:07]}  Kf6 {[%clk 0:00:13]} 40. f4 {[%clk 0:00:06]}  Ke6 {[%clk 0:00:12]} 41. Nxf7 {[%clk 0:00:06]}  d4 {[%clk 0:00:12]} 42. Ng5+ {[%clk 0:00:06]}  Kd5 {[%clk 0:00:12]} 43. Rd7+ {[%clk 0:00:06]}  Kc5 {[%clk 0:00:13]} 44. Ne6+ {[%clk 0:00:06]}  Kc6 {[%clk 0:00:11]} 45. Rd8 {[%clk 0:00:06]}  Ng2+ {[%clk 0:00:09]} 46. Kf1 {[%clk 0:00:07]}  Ne3+ {[%clk 0:00:10]} 47. Ke1 {[%clk 0:00:07]}  Ng2+ {[%clk 0:00:08]} 48. Kf1 {[%clk 0:00:08]}  Ne3+ {[%clk 0:00:07]} 49. Ke1 {[%clk 0:00:08]} 1/2-1/2


[Site "https://www.chess.com"]

[Event "Titled Tuesday Blitz August 10 2021"]
[White "Salinas Herrera, Pablo"]
[Black "Tica, Sven"]
[WhiteFideId "3407128"]
[BlackFideId "14526948"]
[WhiteElo "2541"]
[BlackElo "2391"]
[Result "1-0"]
[Round "10"]
[TimeControl "180+1"]
[Date "2021.08.10"]
[WhiteClock "0:00:23"]
[BlackClock "0:00:48"]

1. d4 {[%clk 0:03:00]}  Nf6 {[%clk 0:02:58]} 2. Nf3 {[%clk 0:03:00]}  g6 {[%clk 0:02:58]} 3. Nbd2 {[%clk 0:03:01]}  Bg7 {[%clk 0:02:52]} 4. e4 {[%clk 0:03:00]}  d6 {[%clk 0:02:52]} 5. Bb5+ {[%clk 0:03:00]}  c6 {[%clk 0:02:47]} 6. Bd3 {[%clk 0:03:00]}  O-O {[%clk 0:02:47]} 7. O-O {[%clk 0:03:01]}  Nbd7 {[%clk 0:02:48]} 8. Re1 {[%clk 0:02:57]}  e5 {[%clk 0:02:47]} 9. c3 {[%clk 0:02:57]}  Qc7 {[%clk 0:02:45]} 10. h3 {[%clk 0:02:57]}  b6 {[%clk 0:02:42]} 11. Nf1 {[%clk 0:02:57]}  Bb7 {[%clk 0:02:42]} 12. Ng3 {[%clk 0:02:57]}  Rad8 {[%clk 0:02:39]} 13. Bg5 {[%clk 0:02:57]}  h6 {[%clk 0:02:39]} 14. Be3 {[%clk 0:02:57]}  Rfe8 {[%clk 0:02:40]} 15. Qd2 {[%clk 0:02:57]}  Kh7 {[%clk 0:02:40]} 16. Rad1 {[%clk 0:02:56]}  d5 {[%clk 0:02:33]} 17. Nxe5 {[%clk 0:02:55]}  Nxe5 {[%clk 0:02:31]} 18. dxe5 {[%clk 0:02:55]}  Nxe4 {[%clk 0:02:30]} 19. Bxe4 {[%clk 0:02:34]}  dxe4 {[%clk 0:02:30]} 20. Qc2 {[%clk 0:02:34]}  Rxd1 {[%clk 0:02:29]} 21. Rxd1 {[%clk 0:02:35]}  Qxe5 {[%clk 0:02:28]} 22. Rd7 {[%clk 0:02:33]}  Re7 {[%clk 0:02:29]} 23. Bd4 {[%clk 0:02:31]}  Qe6 {[%clk 0:02:22]} 24. Rxe7 {[%clk 0:02:31]}  Qxe7 {[%clk 0:02:23]} 25. Bxg7 {[%clk 0:02:31]}  Kxg7 {[%clk 0:02:24]} 26. Nxe4 {[%clk 0:02:29]}  c5 {[%clk 0:02:23]} 27. Ng3 {[%clk 0:02:28]}  Qe1+ {[%clk 0:02:20]} 28. Kh2 {[%clk 0:02:27]}  h5 {[%clk 0:02:21]} 29. f3 {[%clk 0:02:05]}  Qe5 {[%clk 0:02:13]} 30. h4 {[%clk 0:01:59]}  Qf4 {[%clk 0:02:12]} 31. Qf2 {[%clk 0:01:58]}  Qxh4+ {[%clk 0:02:10]} 32. Kg1 {[%clk 0:01:59]}  Qc4 {[%clk 0:02:05]} 33. a3 {[%clk 0:01:54]}  Qd3 {[%clk 0:02:00]} 34. Qe1 {[%clk 0:01:52]}  h4 {[%clk 0:01:46]} 35. Nh1 {[%clk 0:01:50]}  Qf5 {[%clk 0:01:35]} 36. Nf2 {[%clk 0:01:44]}  Bd5 {[%clk 0:01:35]} 37. Qd2 {[%clk 0:01:31]}  h3 {[%clk 0:01:28]} 38. c4 {[%clk 0:01:15]}  Bc6 {[%clk 0:01:22]} 39. Nxh3 {[%clk 0:01:14]}  Qe5 {[%clk 0:01:17]} 40. Nf2 {[%clk 0:01:08]}  a6 {[%clk 0:01:15]} 41. Ng4 {[%clk 0:01:07]}  Qd4+ {[%clk 0:01:08]} 42. Qxd4+ {[%clk 0:01:07]}  cxd4 {[%clk 0:01:09]} 43. Ne5 {[%clk 0:01:08]}  Ba4 {[%clk 0:01:08]} 44. Kf2 {[%clk 0:01:03]}  Kf6 {[%clk 0:01:08]} 45. Nd3 {[%clk 0:00:58]}  Ke6 {[%clk 0:01:08]} 46. c5 {[%clk 0:00:54]}  b5 {[%clk 0:01:02]} 47. Ke2 {[%clk 0:00:35]}  a5 {[%clk 0:01:00]} 48. Kd2 {[%clk 0:00:34]}  Bb3 {[%clk 0:00:55]} 49. Nc1 {[%clk 0:00:27]}  a4 {[%clk 0:00:48]} 50. Nxb3 {[%clk 0:00:22]}  axb3 {[%clk 0:00:49]} 51. Kd3 {[%clk 0:00:22]}  Kd5 {[%clk 0:00:49]} 52. c6 {[%clk 0:00:23]}  Kxc6 {[%clk 0:00:50]} 53. Kxd4 {[%clk 0:00:24]}  f5 {[%clk 0:00:44]} 54. Kc3 {[%clk 0:00:19]}  Kc5 {[%clk 0:00:45]} 55. Kxb3 {[%clk 0:00:19]}  Kd4 {[%clk 0:00:45]} 56. Kb4 {[%clk 0:00:18]}  Ke3 {[%clk 0:00:46]} 57. Kxb5 {[%clk 0:00:18]}  Kf2 {[%clk 0:00:47]} 58. a4 {[%clk 0:00:19]}  Kxg2 {[%clk 0:00:47]} 59. a5 {[%clk 0:00:20]}  Kxf3 {[%clk 0:00:48]} 60. a6 {[%clk 0:00:21]}  Ke2 {[%clk 0:00:46]} 61. a7 {[%clk 0:00:22]}  f4 {[%clk 0:00:47]} 62. a8=Q {[%clk 0:00:23]}  f3 {[%clk 0:00:48]} 63. Qe4+ {[%clk 0:00:23]} 1-0


[Site "https://www.chess.com"]

[Event "Titled Tuesday Blitz August 10 2021"]
[White "Timofeev, Artyom"]
[Black "Yoo, Christopher Woojin"]
[WhiteFideId "4140419"]
[BlackFideId "30909694"]
[WhiteElo "2582"]
[BlackElo "2105"]
[Result "1/2-1/2"]
[Round "10"]
[TimeControl "180+1"]
[Date "2021.08.10"]
[WhiteClock "0:00:16"]
[BlackClock "0:00:07"]

1. c4 {[%clk 0:03:00]}  Nf6 {[%clk 0:02:59]} 2. Nc3 {[%clk 0:03:00]}  e6 {[%clk 0:02:59]} 3. Nf3 {[%clk 0:03:00]}  c5 {[%clk 0:02:57]} 4. e4 {[%clk 0:03:00]}  Nc6 {[%clk 0:02:53]} 5. Be2 {[%clk 0:02:59]}  b6 {[%clk 0:02:52]} 6. O-O {[%clk 0:02:56]}  Bb7 {[%clk 0:02:51]} 7. Re1 {[%clk 0:02:56]}  Bd6 {[%clk 0:02:40]} 8. d4 {[%clk 0:02:42]}  cxd4 {[%clk 0:02:39]} 9. Nxd4 {[%clk 0:02:43]}  Nxd4 {[%clk 0:02:29]} 10. Qxd4 {[%clk 0:02:42]}  Qb8 {[%clk 0:02:29]} 11. g3 {[%clk 0:02:29]}  Be5 {[%clk 0:02:19]} 12. Qd3 {[%clk 0:02:29]}  O-O {[%clk 0:02:19]} 13. Bf3 {[%clk 0:02:26]}  Rc8 {[%clk 0:01:59]} 14. Bd2 {[%clk 0:02:25]}  a6 {[%clk 0:01:33]} 15. Rac1 {[%clk 0:02:09]}  Qc7 {[%clk 0:01:28]} 16. b3 {[%clk 0:02:08]}  d6 {[%clk 0:01:28]} 17. Bg2 {[%clk 0:02:08]}  Nd7 {[%clk 0:01:27]} 18. Ne2 {[%clk 0:01:44]}  Nc5 {[%clk 0:01:25]} 19. Qe3 {[%clk 0:01:44]}  Bf6 {[%clk 0:01:10]} 20. Bc3 {[%clk 0:01:41]}  e5 {[%clk 0:01:04]} 21. h4 {[%clk 0:01:34]}  Rd8 {[%clk 0:00:59]} 22. Bb2 {[%clk 0:01:18]}  Ne6 {[%clk 0:00:27]} 23. Nc3 {[%clk 0:01:18]}  Nd4 {[%clk 0:00:22]} 24. Nd5 {[%clk 0:01:18]}  Bxd5 {[%clk 0:00:22]} 25. cxd5 {[%clk 0:01:19]}  Qb7 {[%clk 0:00:20]} 26. Bh3 {[%clk 0:01:11]}  a5 {[%clk 0:00:17]} 27. Bxd4 {[%clk 0:01:08]}  exd4 {[%clk 0:00:17]} 28. Qd3 {[%clk 0:01:09]}  a4 {[%clk 0:00:17]} 29. b4 {[%clk 0:01:08]}  a3 {[%clk 0:00:08]} 30. Rc6 {[%clk 0:01:07]}  b5 {[%clk 0:00:08]} 31. Kg2 {[%clk 0:01:01]}  Ra4 {[%clk 0:00:08]} 32. Rb1 {[%clk 0:01:00]}  g6 {[%clk 0:00:06]} 33. h5 {[%clk 0:00:54]}  Kg7 {[%clk 0:00:06]} 34. Bg4 {[%clk 0:00:53]}  Qe7 {[%clk 0:00:05]} 35. Bf3 {[%clk 0:00:46]}  Rb8 {[%clk 0:00:05]} 36. Qc2 {[%clk 0:00:40]}  Qe5 {[%clk 0:00:03]} 37. Rc7 {[%clk 0:00:38]}  Raa8 {[%clk 0:00:02]} 38. Rc1 {[%clk 0:00:33]}  Qg5 {[%clk 0:00:01]} 39. Qd3 {[%clk 0:00:27]}  Be5 {[%clk 0:00:02]} 40. R1c6 {[%clk 0:00:23]}  Qf6 {[%clk 0:00:02]} 41. Rd7 {[%clk 0:00:22]}  Rd8 {[%clk 0:00:02]} 42. Rb7 {[%clk 0:00:21]}  Rdb8 {[%clk 0:00:02]} 43. Rxb5 {[%clk 0:00:21]}  Rxb5 {[%clk 0:00:01]} 44. Qxb5 {[%clk 0:00:21]}  gxh5 {[%clk 0:00:01]} 45. Bxh5 {[%clk 0:00:20]}  Qg5 {[%clk 0:00:02]} 46. Qe2 {[%clk 0:00:18]}  d3 {[%clk 0:00:01]} 47. Qg4 {[%clk 0:00:17]}  Qxg4 {[%clk 0:00:02]} 48. Bxg4 {[%clk 0:00:18]}  Rb8 {[%clk 0:00:02]} 49. Ra6 {[%clk 0:00:16]}  Rxb4 {[%clk 0:00:02]} 50. Rxa3 {[%clk 0:00:16]}  Rxe4 {[%clk 0:00:02]} 51. Bf5 {[%clk 0:00:15]}  Rd4 {[%clk 0:00:02]} 52. Bxd3 {[%clk 0:00:15]}  Rxd5 {[%clk 0:00:02]} 53. Rb3 {[%clk 0:00:10]}  Ra5 {[%clk 0:00:02]} 54. a3 {[%clk 0:00:08]}  Ra7 {[%clk 0:00:02]} 55. Bb5 {[%clk 0:00:08]}  Bd4 {[%clk 0:00:02]} 56. a4 {[%clk 0:00:08]}  Bc5 {[%clk 0:00:02]} 57. f4 {[%clk 0:00:08]}  h5 {[%clk 0:00:02]} 58. Kf3 {[%clk 0:00:09]}  Kg6 {[%clk 0:00:02]} 59. Rd3 {[%clk 0:00:09]}  f5 {[%clk 0:00:02]} 60. Rd5 {[%clk 0:00:09]}  Re7 {[%clk 0:00:02]} 61. Bd3 {[%clk 0:00:09]}  Re3+ {[%clk 0:00:01]} 62. Kg2 {[%clk 0:00:09]}  Kf6 {[%clk 0:00:02]} 63. Bxf5 {[%clk 0:00:08]}  Ra3 {[%clk 0:00:02]} 64. Bd3 {[%clk 0:00:07]}  Rxa4 {[%clk 0:00:02]} 65. Rxh5 {[%clk 0:00:07]}  Ra2+ {[%clk 0:00:02]} 66. Kh3 {[%clk 0:00:06]}  Ra3 {[%clk 0:00:03]} 67. Be4 {[%clk 0:00:06]}  Bf2 {[%clk 0:00:03]} 68. Rg5 {[%clk 0:00:06]}  Re3 {[%clk 0:00:02]} 69. Bg2 {[%clk 0:00:05]}  Rd3 {[%clk 0:00:01]} 70. Kh4 {[%clk 0:00:05]}  d5 {[%clk 0:00:01]} 71. Bxd5 {[%clk 0:00:04]}  Bxg3+ {[%clk 0:00:01]} 72. Rxg3 {[%clk 0:00:05]}  Rxd5 {[%clk 0:00:02]} 73. Kg4 {[%clk 0:00:05]}  Rd1 {[%clk 0:00:02]} 74. Re3 {[%clk 0:00:06]}  Rg1+ {[%clk 0:00:02]} 75. Kf3 {[%clk 0:00:06]}  Ra1 {[%clk 0:00:02]} 76. Ke4 {[%clk 0:00:07]}  Ra2 {[%clk 0:00:03]} 77. Kf3 {[%clk 0:00:08]}  Ra4 {[%clk 0:00:03]} 78. Re4 {[%clk 0:00:08]}  Rxe4 {[%clk 0:00:02]} 79. Kxe4 {[%clk 0:00:09]}  Ke6 {[%clk 0:00:03]} 80. f5+ {[%clk 0:00:09]}  Kf6 {[%clk 0:00:04]} 81. Kf4 {[%clk 0:00:10]}  Kf7 {[%clk 0:00:04]} 82. Ke5 {[%clk 0:00:11]}  Ke7 {[%clk 0:00:05]} 83. f6+ {[%clk 0:00:12]}  Kf7 {[%clk 0:00:05]} 84. Kf5 {[%clk 0:00:12]}  Kf8 {[%clk 0:00:06]} 85. Ke5 {[%clk 0:00:13]}  Kf7 {[%clk 0:00:06]} 86. Kf5 {[%clk 0:00:14]}  Kf8 {[%clk 0:00:06]} 87. Ke6 {[%clk 0:00:15]}  Ke8 {[%clk 0:00:07]} 88. f7+ {[%clk 0:00:15]}  Kf8 {[%clk 0:00:07]} 89. Kf6 {[%clk 0:00:16]} 1/2-1/2


[Site "https://www.chess.com"]

[Event "Titled Tuesday Blitz August 10 2021"]
[White "Williams, Simon K"]
[Black "Maximov, Dmitry"]
[WhiteFideId "404454"]
[BlackFideId "14105659"]
[WhiteElo "2468"]
[BlackElo "2494"]
[Result "1-0"]
[Round "10"]
[TimeControl "180+1"]
[Date "2021.08.10"]
[WhiteClock "0:00:18"]
[BlackClock "0:00:27"]

1. d4 {[%clk 0:03:00]}  Nf6 {[%clk 0:02:59]} 2. Bg5 {[%clk 0:02:59]}  c5 {[%clk 0:02:58]} 3. d5 {[%clk 0:02:59]}  Qb6 {[%clk 0:02:58]} 4. Nc3 {[%clk 0:02:57]}  h6 {[%clk 0:02:56]} 5. Bxf6 {[%clk 0:02:53]}  Qxf6 {[%clk 0:02:54]} 6. e4 {[%clk 0:02:50]}  g5 {[%clk 0:02:52]} 7. d6 {[%clk 0:02:29]}  e6 {[%clk 0:02:45]} 8. Nf3 {[%clk 0:02:25]}  Nc6 {[%clk 0:02:38]} 9. Nb5 {[%clk 0:02:23]}  Kd8 {[%clk 0:02:36]} 10. c3 {[%clk 0:02:09]}  a6 {[%clk 0:02:36]} 11. Nc7 {[%clk 0:01:47]}  Rb8 {[%clk 0:02:35]} 12. Qd2 {[%clk 0:01:04]}  g4 {[%clk 0:02:35]} 13. Ng1 {[%clk 0:00:37]}  h5 {[%clk 0:02:35]} 14. f4 {[%clk 0:00:32]}  gxf3 {[%clk 0:02:31]} 15. Nxf3 {[%clk 0:00:32]}  Bh6 {[%clk 0:02:31]} 16. Qf2 {[%clk 0:00:31]}  b5 {[%clk 0:01:59]} 17. Qxc5 {[%clk 0:00:29]}  b4 {[%clk 0:01:59]} 18. e5 {[%clk 0:00:25]}  Qf4 {[%clk 0:01:55]} 19. Be2 {[%clk 0:00:22]}  bxc3 {[%clk 0:01:52]} 20. bxc3 {[%clk 0:00:22]}  Rb2 {[%clk 0:01:51]} 21. O-O {[%clk 0:00:17]}  Rxe2 {[%clk 0:01:50]} 22. Nd4 {[%clk 0:00:17]}  Qe3+ {[%clk 0:01:10]} 23. Kh1 {[%clk 0:00:17]}  Qe4 {[%clk 0:01:00]} 24. Rg1 {[%clk 0:00:16]}  Be3 {[%clk 0:00:55]} 25. Qb6 {[%clk 0:00:16]}  Bxd4 {[%clk 0:00:40]} 26. cxd4 {[%clk 0:00:16]}  Rg8 {[%clk 0:00:29]} 27. Nd5+ {[%clk 0:00:16]}  Ke8 {[%clk 0:00:28]} 28. Nf6+ {[%clk 0:00:16]}  Kf8 {[%clk 0:00:29]} 29. Nxe4 {[%clk 0:00:17]}  Rxe4 {[%clk 0:00:29]} 30. Rac1 {[%clk 0:00:17]}  Rgg4 {[%clk 0:00:26]} 31. Rxc6 {[%clk 0:00:17]}  dxc6 {[%clk 0:00:26]} 32. Qd8+ {[%clk 0:00:17]}  Kg7 {[%clk 0:00:26]} 33. Qxc8 {[%clk 0:00:18]}  Rxd4 {[%clk 0:00:27]} 34. d7 {[%clk 0:00:18]} 1-0


[Site "https://www.chess.com"]

[Event "Titled Tuesday Blitz August 10 2021"]
[White "Giroyan, Gary"]
[Black "Leitao, Rafael"]
[WhiteFideId "680281"]
[BlackFideId "2101246"]
[WhiteElo "2420"]
[BlackElo "2609"]
[Result "1-0"]
[Round "11"]
[TimeControl "180+1"]
[Date "2021.08.10"]
[WhiteClock "0:00:20"]
[BlackClock "0:00:15"]

1. d4 {[%clk 0:03:00]}  Nf6 {[%clk 0:02:54]} 2. c4 {[%clk 0:03:00]}  e6 {[%clk 0:02:54]} 3. Nc3 {[%clk 0:02:56]}  Bb4 {[%clk 0:02:52]} 4. Nf3 {[%clk 0:02:51]}  O-O {[%clk 0:02:48]} 5. e3 {[%clk 0:02:49]}  b6 {[%clk 0:02:42]} 6. Bd2 {[%clk 0:02:47]}  Bb7 {[%clk 0:02:42]} 7. Bd3 {[%clk 0:02:47]}  d6 {[%clk 0:02:36]} 8. Qc2 {[%clk 0:02:37]}  c5 {[%clk 0:02:24]} 9. a3 {[%clk 0:02:34]}  Bxc3 {[%clk 0:02:23]} 10. Bxc3 {[%clk 0:02:35]}  Nbd7 {[%clk 0:02:23]} 11. Nd2 {[%clk 0:01:54]}  cxd4 {[%clk 0:02:19]} 12. exd4 {[%clk 0:01:53]}  d5 {[%clk 0:02:19]} 13. O-O {[%clk 0:01:51]}  dxc4 {[%clk 0:02:14]} 14. Nxc4 {[%clk 0:01:50]}  Qc7 {[%clk 0:02:09]} 15. Bb4 {[%clk 0:01:38]}  Rfc8 {[%clk 0:01:55]} 16. Qe2 {[%clk 0:01:38]}  Qc6 {[%clk 0:01:49]} 17. f3 {[%clk 0:01:37]}  Qd5 {[%clk 0:01:37]} 18. Nd6 {[%clk 0:01:30]}  Rd8 {[%clk 0:01:12]} 19. Rad1 {[%clk 0:01:01]}  Bc6 {[%clk 0:00:47]} 20. Bc4 {[%clk 0:00:46]}  Qh5 {[%clk 0:00:38]} 21. Nxf7 {[%clk 0:00:39]}  Re8 {[%clk 0:00:33]} 22. Nd6 {[%clk 0:00:38]}  Nd5 {[%clk 0:00:31]} 23. Nxe8 {[%clk 0:00:37]}  Rxe8 {[%clk 0:00:31]} 24. Bd6 {[%clk 0:00:36]}  N7f6 {[%clk 0:00:26]} 25. Rfe1 {[%clk 0:00:33]}  Qg6 {[%clk 0:00:26]} 26. Bd3 {[%clk 0:00:28]}  Qf7 {[%clk 0:00:25]} 27. Rc1 {[%clk 0:00:27]}  Bb7 {[%clk 0:00:25]} 28. Bb5 {[%clk 0:00:27]}  Nd7 {[%clk 0:00:19]} 29. Bg3 {[%clk 0:00:20]}  h6 {[%clk 0:00:18]} 30. Bc6 {[%clk 0:00:20]}  Bxc6 {[%clk 0:00:17]} 31. Rxc6 {[%clk 0:00:21]}  Nf8 {[%clk 0:00:16]} 32. Rd6 {[%clk 0:00:20]}  Ng6 {[%clk 0:00:15]} 33. Rxd5 {[%clk 0:00:20]} 1-0


[Site "https://www.chess.com"]

[Event "Titled Tuesday Blitz August 10 2021"]
[White "Ibarra Jerez, Jose Carlos"]
[Black "Demidov, Mikhail"]
[WhiteFideId "2226332"]
[BlackFideId "4197143"]
[WhiteElo "2602"]
[BlackElo "2559"]
[Result "1/2-1/2"]
[Round "11"]
[TimeControl "180+1"]
[Date "2021.08.10"]
[WhiteClock "0:00:02"]
[BlackClock "0:00:11"]

1. d4 {[%clk 0:03:00]}  d5 {[%clk 0:02:58]} 2. Bf4 {[%clk 0:03:01]}  c5 {[%clk 0:02:58]} 3. e3 {[%clk 0:03:01]}  Nc6 {[%clk 0:02:58]} 4. c3 {[%clk 0:02:57]}  Nf6 {[%clk 0:02:55]} 5. Nd2 {[%clk 0:02:57]}  Qb6 {[%clk 0:02:48]} 6. Qb3 {[%clk 0:02:56]}  c4 {[%clk 0:02:49]} 7. Qc2 {[%clk 0:02:54]}  Nh5 {[%clk 0:02:45]} 8. Bg5 {[%clk 0:02:40]}  h6 {[%clk 0:02:45]} 9. Bh4 {[%clk 0:02:41]}  g5 {[%clk 0:02:45]} 10. Bg3 {[%clk 0:02:36]}  Nxg3 {[%clk 0:02:44]} 11. hxg3 {[%clk 0:02:36]}  e5 {[%clk 0:02:38]} 12. dxe5 {[%clk 0:02:12]}  Bg7 {[%clk 0:02:35]} 13. Ngf3 {[%clk 0:02:02]}  g4 {[%clk 0:02:34]} 14. Nd4 {[%clk 0:01:59]}  Nxe5 {[%clk 0:02:35]} 15. Be2 {[%clk 0:01:48]}  Bd7 {[%clk 0:02:21]} 16. e4 {[%clk 0:01:38]}  dxe4 {[%clk 0:02:16]} 17. Nxc4 {[%clk 0:01:16]}  Nxc4 {[%clk 0:02:13]} 18. Bxc4 {[%clk 0:01:16]}  f5 {[%clk 0:02:05]} 19. O-O-O {[%clk 0:01:13]}  O-O-O {[%clk 0:02:05]} 20. Qb3 {[%clk 0:00:55]}  Qxb3 {[%clk 0:01:45]} 21. axb3 {[%clk 0:00:55]}  Rde8 {[%clk 0:01:37]} 22. Rh5 {[%clk 0:00:47]}  Rhf8 {[%clk 0:01:28]} 23. Bb5 {[%clk 0:00:43]}  Bxd4 {[%clk 0:01:19]} 24. Bxd7+ {[%clk 0:00:42]}  Kxd7 {[%clk 0:01:20]} 25. Rxd4+ {[%clk 0:00:43]}  Kc8 {[%clk 0:01:16]} 26. Kd2 {[%clk 0:00:39]}  f4 {[%clk 0:01:04]} 27. gxf4 {[%clk 0:00:39]}  Rxf4 {[%clk 0:01:04]} 28. Ke3 {[%clk 0:00:39]}  Ref8 {[%clk 0:00:40]} 29. Rd2 {[%clk 0:00:39]}  g3 {[%clk 0:00:33]} 30. fxg3 {[%clk 0:00:34]}  Rg4 {[%clk 0:00:34]} 31. Rh3 {[%clk 0:00:25]}  Rfg8 {[%clk 0:00:24]} 32. Re2 {[%clk 0:00:22]}  Rxg3+ {[%clk 0:00:21]} 33. Rxg3 {[%clk 0:00:21]}  Rxg3+ {[%clk 0:00:22]} 34. Kxe4 {[%clk 0:00:22]}  Kd7 {[%clk 0:00:17]} 35. Kf4 {[%clk 0:00:22]}  Rg6 {[%clk 0:00:17]} 36. g4 {[%clk 0:00:21]}  a5 {[%clk 0:00:15]} 37. Re5 {[%clk 0:00:20]}  b6 {[%clk 0:00:15]} 38. Rf5 {[%clk 0:00:19]}  Rd6 {[%clk 0:00:12]} 39. Rb5 {[%clk 0:00:16]}  Kc7 {[%clk 0:00:10]} 40. b4 {[%clk 0:00:13]}  a4 {[%clk 0:00:10]} 41. Rh5 {[%clk 0:00:09]}  Rd2 {[%clk 0:00:10]} 42. Rxh6 {[%clk 0:00:09]}  Rxb2 {[%clk 0:00:10]} 43. Rh7+ {[%clk 0:00:05]}  Kc6 {[%clk 0:00:10]} 44. Ra7 {[%clk 0:00:05]}  b5 {[%clk 0:00:09]} 45. g5 {[%clk 0:00:06]}  Rf2+ {[%clk 0:00:09]} 46. Ke5 {[%clk 0:00:06]}  Rg2 {[%clk 0:00:09]} 47. Kf6 {[%clk 0:00:06]}  Rf2+ {[%clk 0:00:10]} 48. Ke6 {[%clk 0:00:06]}  Rg2 {[%clk 0:00:10]} 49. Kf6 {[%clk 0:00:07]}  Rf2+ {[%clk 0:00:11]} 50. Ke7 {[%clk 0:00:05]}  Rg2 {[%clk 0:00:11]} 51. Kf6 {[%clk 0:00:02]} 1/2-1/2


[Site "https://www.chess.com"]